[Event "Early-Titled-Tuesday-Blitz-September-12-2023"]
[Site "Chess.com"]
[Date "2023.09.12"]
[Round "2"]
[White "GamayevOleg"]
[Black "Francisco_Ferrari"]
[Result "1-0"]
[WhiteElo "2475"]
[BlackElo "2153"]
[TimeControl "180+1"]
[EndTime "8:17:36 PDT"]
[Termination "GamayevOleg won on time"]

1. d4 {[%clk 0:02:58.8]} 1... Nf6 {[%clk 0:02:57.6]} 2. Bf4 {[%clk 0:02:57.7]}
2... g6 {[%clk 0:02:58.5]} 3. e3 {[%clk 0:02:55.7]} 3... Bg7 {[%clk 0:02:58.5]}
4. Nd2 {[%clk 0:02:53.3]} 4... O-O {[%clk 0:02:58.6]} 5. c3 {[%clk 0:02:51.9]}
5... d6 {[%clk 0:02:59.5]} 6. Ngf3 {[%clk 0:02:51]} 6... Nbd7 {[%clk 0:02:59.9]}
7. h3 {[%clk 0:02:51.4]} 7... Qe8 {[%clk 0:02:59.6]} 8. Be2 {[%clk 0:02:49.3]}
8... e5 {[%clk 0:02:59.7]} 9. Bh2 {[%clk 0:02:49.1]} 9... Qe7 {[%clk 0:02:48.7]}
10. O-O {[%clk 0:02:48.6]} 10... c6 {[%clk 0:02:44.3]} 11. b4 {[%clk 0:02:47.6]}
11... b5 {[%clk 0:02:22.1]} 12. a4 {[%clk 0:02:47.1]} 12... Nd5 {[%clk
0:02:13.1]} 13. Qb3 {[%clk 0:02:42.8]} 13... exd4 {[%clk 0:02:02.5]} 14. Nxd4
{[%clk 0:02:32.8]} 14... Bb7 {[%clk 0:01:40]} 15. N2f3 {[%clk 0:02:24.7]} 15...
a6 {[%clk 0:01:30.1]} 16. c4 {[%clk 0:02:16]} 16... bxc4 {[%clk 0:01:27]} 17.
Bxc4 {[%clk 0:02:16.9]} 17... N7f6 {[%clk 0:01:24.4]} 18. Rac1 {[%clk
0:02:08.1]} 18... Nxb4 {[%clk 0:01:07.5]} 19. Qxb4 {[%clk 0:02:03.1]} 19... c5
{[%clk 0:01:08]} 20. Qb3 {[%clk 0:01:58.2]} 20... cxd4 {[%clk 0:01:07.3]} 21.
Nxd4 {[%clk 0:01:59.1]} 21... Rab8 {[%clk 0:01:01.1]} 22. Qa2 {[%clk 0:01:46.6]}
22... Ne4 {[%clk 0:00:58]} 23. Bd5 {[%clk 0:01:42.4]} 23... Be5 {[%clk
0:00:44.2]} 24. Bxb7 {[%clk 0:01:39.9]} 24... Rxb7 {[%clk 0:00:40.1]} 25. Nc6
{[%clk 0:01:34.7]} 25... Bxh2+ {[%clk 0:00:35.4]} 26. Kxh2 {[%clk 0:01:35.6]}
26... Qh4 {[%clk 0:00:31.1]} 27. Rc4 {[%clk 0:01:24.3]} 27... d5 {[%clk
0:00:28.6]} 28. Rd4 {[%clk 0:01:21.8]} 28... Qg5 {[%clk 0:00:20]} 29. Qxd5
{[%clk 0:01:18.1]} 29... Qxd5 {[%clk 0:00:18.5]} 30. Rxd5 {[%clk 0:01:19]} 30...
Nc3 {[%clk 0:00:19.1]} 31. Rd4 {[%clk 0:01:13.9]} 31... Rc8 {[%clk 0:00:19.7]}
32. Ne5 {[%clk 0:01:10.2]} 32... a5 {[%clk 0:00:17.5]} 33. Rc1 {[%clk
0:01:08.5]} 33... Rb4 {[%clk 0:00:16.9]} 34. Rd3 {[%clk 0:01:04.4]} 34... Re8
{[%clk 0:00:13.8]} 35. Nd7 {[%clk 0:01:02.4]} 35... Ne4 {[%clk 0:00:09.8]} 36.
f3 {[%clk 0:01:00.4]} 36... Nf2 {[%clk 0:00:05.7]} 37. Rd2 {[%clk 0:01:00.5]}
37... Re7 {[%clk 0:00:03]} 38. Nf6+ {[%clk 0:00:57.6]} 38... Kg7 {[%clk
0:00:03.4]} 39. Nd5 {[%clk 0:00:58.4]} 39... Rd7 {[%clk 0:00:03.4]} 40. e4
{[%clk 0:00:58.1]} 40... Rxa4 {[%clk 0:00:01.3]} 41. Rxf2 {[%clk 0:00:56.8]} 1-0

[Event "Early-Titled-Tuesday-Blitz-September-12-2023"]
[Site "Chess.com"]
[Date "2023.09.12"]
[Round "2"]
[White "mamey78"]
[Black "crazy_m_attack"]
[Result "1-0"]
[WhiteElo "2563"]
[BlackElo "2375"]
[TimeControl "180+1"]
[EndTime "8:17:37 PDT"]
[Termination "mamey78 won on time"]

1. e4 {[%clk 0:03:00.9]} 1... e5 {[%clk 0:02:59.7]} 2. Nf3 {[%clk 0:03:00.7]}
2... Nc6 {[%clk 0:02:59.1]} 3. Bb5 {[%clk 0:03:00.8]} 3... a6 {[%clk 0:02:59.2]}
4. Ba4 {[%clk 0:03:01.1]} 4... Nf6 {[%clk 0:02:59.7]} 5. O-O {[%clk 0:03:01.2]}
5... Be7 {[%clk 0:03:00.2]} 6. Re1 {[%clk 0:03:01.5]} 6... b5 {[%clk 0:03:00.8]}
7. Bb3 {[%clk 0:03:01.8]} 7... O-O {[%clk 0:03:01.5]} 8. c3 {[%clk 0:03:02.1]}
8... d5 {[%clk 0:03:02.2]} 9. exd5 {[%clk 0:03:02.5]} 9... Nxd5 {[%clk
0:03:03.1]} 10. d4 {[%clk 0:03:02]} 10... exd4 {[%clk 0:02:59.6]} 11. Nxd4
{[%clk 0:03:02.9]} 11... Nxd4 {[%clk 0:03:00]} 12. Qxd4 {[%clk 0:03:03.5]} 12...
Bb7 {[%clk 0:02:58.3]} 13. Nd2 {[%clk 0:03:02.8]} 13... c5 {[%clk 0:02:29.6]}
14. Qg4 {[%clk 0:02:50.1]} 14... Nf6 {[%clk 0:02:09.3]} 15. Qh3 {[%clk
0:02:42.4]} 15... Bd6 {[%clk 0:02:00.5]} 16. Nf1 {[%clk 0:02:35.6]} 16... Bc8
{[%clk 0:01:41.5]} 17. Qh4 {[%clk 0:02:31.6]} 17... Bf5 {[%clk 0:00:57.2]} 18.
Ng3 {[%clk 0:02:22.4]} 18... Bg6 {[%clk 0:00:53.5]} 19. Bf4 {[%clk 0:02:09.3]}
19... Bxf4 {[%clk 0:00:44]} 20. Qxf4 {[%clk 0:02:10.2]} 20... Re8 {[%clk
0:00:40.4]} 21. Rad1 {[%clk 0:01:59.6]} 21... Qb6 {[%clk 0:00:21.1]} 22. a3
{[%clk 0:01:52.2]} 22... c4 {[%clk 0:00:20.4]} 23. Ba2 {[%clk 0:01:52.3]} 23...
Rad8 {[%clk 0:00:19.8]} 24. h4 {[%clk 0:01:49.7]} 24... Bc2 {[%clk 0:00:12.3]}
25. Rc1 {[%clk 0:01:39.3]} 25... Bd3 {[%clk 0:00:11.2]} 26. h5 {[%clk
0:01:36.5]} 26... h6 {[%clk 0:00:10.6]} 27. Bb1 {[%clk 0:01:35]} 27... Qc5
{[%clk 0:00:05]} 28. Qf3 {[%clk 0:01:16.2]} 28... Rxe1+ {[%clk 0:00:01.9]} 29.
Rxe1 {[%clk 0:01:15.7]} 29... Qg5 {[%clk 0:00:02.6]} 30. a4 {[%clk 0:01:07.1]}
30... Qd2 {[%clk 0:00:01.7]} 31. Rd1 {[%clk 0:01:02.7]} 31... Qxb2 {[%clk
0:00:02.3]} 32. Bxd3 {[%clk 0:01:02.2]} 32... cxd3 {[%clk 0:00:03.2]} 33. Nf5
{[%clk 0:00:59.2]} 33... d2 {[%clk 0:00:02.2]} 34. Nxh6+ {[%clk 0:00:52.8]}
34... gxh6 {[%clk 0:00:02.1]} 35. Qxf6 {[%clk 0:00:53]} 35... Qc1 {[%clk
0:00:02.1]} 36. Qxd8+ {[%clk 0:00:52.2]} 36... Kg7 {[%clk 0:00:02.6]} 37. Qxd2
{[%clk 0:00:52.4]} 37... Qxd2 {[%clk 0:00:03.1]} 38. Rxd2 {[%clk 0:00:53.3]}
38... bxa4 {[%clk 0:00:04]} 39. Ra2 {[%clk 0:00:52.1]} 1-0

[Event "Early-Titled-Tuesday-Blitz-September-12-2023"]
[Site "Chess.com"]
[Date "2023.09.12"]
[Round "2"]
[White "twofoxniel"]
[Black "BillieKimbah"]
[Result "1-0"]
[WhiteElo "2648"]
[BlackElo "3016"]
[TimeControl "180+1"]
[EndTime "8:17:40 PDT"]
[Termination "twofoxniel won by resignation"]

1. e4 {[%clk 0:03:00.9]} 1... e5 {[%clk 0:02:58.8]} 2. Nf3 {[%clk 0:02:59.9]}
2... Nc6 {[%clk 0:02:59]} 3. Bc4 {[%clk 0:02:58]} 3... Bc5 {[%clk 0:02:57.6]} 4.
d3 {[%clk 0:02:57.1]} 4... d6 {[%clk 0:02:57.7]} 5. Nc3 {[%clk 0:02:57.7]} 5...
Na5 {[%clk 0:02:57.3]} 6. Bb3 {[%clk 0:02:55.6]} 6... Nxb3 {[%clk 0:02:55.9]} 7.
axb3 {[%clk 0:02:56.5]} 7... a6 {[%clk 0:02:55]} 8. Be3 {[%clk 0:02:57]} 8...
Bxe3 {[%clk 0:02:52.8]} 9. fxe3 {[%clk 0:02:57.9]} 9... Ne7 {[%clk 0:02:50.2]}
10. O-O {[%clk 0:02:58.4]} 10... O-O {[%clk 0:02:50.3]} 11. Qe1 {[%clk
0:02:58.5]} 11... f6 {[%clk 0:02:47.5]} 12. Nh4 {[%clk 0:02:57.3]} 12... Be6
{[%clk 0:02:47.6]} 13. Qg3 {[%clk 0:02:50.9]} 13... Qd7 {[%clk 0:02:47.8]} 14.
Rf2 {[%clk 0:02:50]} 14... b5 {[%clk 0:02:47.1]} 15. Raf1 {[%clk 0:02:48.6]}
15... Kh8 {[%clk 0:02:47.2]} 16. Kh1 {[%clk 0:02:36.2]} 16... a5 {[%clk
0:02:46.5]} 17. d4 {[%clk 0:02:30.8]} 17... Rfe8 {[%clk 0:02:31.4]} 18. Nf5
{[%clk 0:02:13.4]} 18... Nxf5 {[%clk 0:02:26.2]} 19. exf5 {[%clk 0:02:13.5]}
19... Bg8 {[%clk 0:02:25.1]} 20. Qh4 {[%clk 0:02:05.5]} 20... exd4 {[%clk
0:02:11.9]} 21. exd4 {[%clk 0:02:04.5]} 21... Re3 {[%clk 0:02:11.2]} 22. Ne4
{[%clk 0:01:58.7]} 22... Re8 {[%clk 0:02:07.4]} 23. Rf4 {[%clk 0:01:54.5]} 23...
Qe7 {[%clk 0:01:55.1]} 24. Ng3 {[%clk 0:01:48.4]} 24... Bd5 {[%clk 0:01:53.3]}
25. h3 {[%clk 0:01:35.3]} 25... Qf7 {[%clk 0:01:41.1]} 26. Kh2 {[%clk
0:01:27.1]} 26... a4 {[%clk 0:01:39.9]} 27. bxa4 {[%clk 0:01:26.8]} 27... bxa4
{[%clk 0:01:40.8]} 28. Rg4 {[%clk 0:01:23.9]} 28... R8e7 {[%clk 0:01:07.5]} 29.
Ra1 {[%clk 0:01:22.4]} 29... Qe8 {[%clk 0:01:05.9]} 30. Nh5 {[%clk 0:01:18.8]}
30... R3e4 {[%clk 0:00:44.3]} 31. Nxf6 {[%clk 0:01:18.5]} 31... g5 {[%clk
0:00:30.7]} 32. fxg6 {[%clk 0:01:15.2]} 32... Qxg6 {[%clk 0:00:30.4]} 33. Rxg6
{[%clk 0:01:14.4]} 33... Rxh4 {[%clk 0:00:30.2]} 34. Nxd5 {[%clk 0:01:14.1]}
34... Re2 {[%clk 0:00:29.1]} 35. Rg3 {[%clk 0:01:12.2]} 35... Rxd4 {[%clk
0:00:29]} 36. Nc3 {[%clk 0:01:11.6]} 36... Rxc2 {[%clk 0:00:27.6]} 37. Rxa4
{[%clk 0:01:12.1]} 37... Rxa4 {[%clk 0:00:24.4]} 38. Nxa4 {[%clk 0:01:13]} 38...
Rc4 {[%clk 0:00:22.8]} 39. b3 {[%clk 0:01:12.5]} 39... Rb4 {[%clk 0:00:22.7]}
40. Rc3 {[%clk 0:01:12.8]} 40... c5 {[%clk 0:00:22.9]} 41. Nb2 {[%clk
0:01:13.1]} 41... d5 {[%clk 0:00:22.8]} 42. Nd3 {[%clk 0:01:13.1]} 42... Rb8
{[%clk 0:00:17.7]} 43. Nxc5 {[%clk 0:01:13.5]} 43... d4 {[%clk 0:00:18.1]} 44.
Rd3 {[%clk 0:01:12.6]} 44... Rb5 {[%clk 0:00:18.8]} 45. Ne6 {[%clk 0:01:12.6]}
45... Re5 {[%clk 0:00:17.6]} 46. Nxd4 {[%clk 0:01:13.1]} 46... Rd5 {[%clk
0:00:18.2]} 47. b4 {[%clk 0:01:12.4]} 47... Kg8 {[%clk 0:00:17.9]} 48. b5 {[%clk
0:01:12.5]} 48... Rd6 {[%clk 0:00:18.3]} 49. Rg3+ {[%clk 0:01:10.4]} 49... Kf7
{[%clk 0:00:18.4]} 50. Nc6 {[%clk 0:01:10]} 50... Rd5 {[%clk 0:00:18]} 51. Rb3
{[%clk 0:01:10.5]} 1-0

[Event "Early-Titled-Tuesday-Blitz-September-12-2023"]
[Site "Chess.com"]
[Date "2023.09.12"]
[Round "2"]
[White "Maus7"]
[Black "HanSchut"]
[Result "1-0"]
[WhiteElo "2496"]
[BlackElo "2250"]
[TimeControl "180+1"]
[EndTime "8:17:42 PDT"]
[Termination "Maus7 won on time"]

1. d4 {[%clk 0:03:00.9]} 1... Nf6 {[%clk 0:03:00.2]} 2. c4 {[%clk 0:03:01.4]}
2... g6 {[%clk 0:03:00.3]} 3. Nc3 {[%clk 0:03:01.2]} 3... d5 {[%clk 0:03:01.2]}
4. cxd5 {[%clk 0:03:02.1]} 4... Nxd5 {[%clk 0:03:02.1]} 5. e4 {[%clk 0:03:02.8]}
5... Nxc3 {[%clk 0:03:02.9]} 6. bxc3 {[%clk 0:03:03.7]} 6... Bg7 {[%clk
0:03:03.8]} 7. Nf3 {[%clk 0:03:04.4]} 7... c5 {[%clk 0:03:04.6]} 8. Rb1 {[%clk
0:03:04.9]} 8... O-O {[%clk 0:03:03]} 9. Be2 {[%clk 0:03:02.3]} 9... Nc6 {[%clk
0:03:03.2]} 10. d5 {[%clk 0:03:00.7]} 10... Ne5 {[%clk 0:03:03.6]} 11. Nxe5
{[%clk 0:02:59.7]} 11... Bxe5 {[%clk 0:03:04.5]} 12. Qd2 {[%clk 0:02:36.5]}
12... e6 {[%clk 0:03:03.9]} 13. f4 {[%clk 0:02:15.3]} 13... Bc7 {[%clk
0:03:02.8]} 14. O-O {[%clk 0:02:12.7]} 14... exd5 {[%clk 0:03:01.8]} 15. exd5
{[%clk 0:02:13.6]} 15... Ba5 {[%clk 0:02:54.4]} 16. Ba3 {[%clk 0:02:13.9]} 16...
Bf5 {[%clk 0:02:46.5]} 17. Rxb7 {[%clk 0:01:45]} 17... Bb6 {[%clk 0:02:45.5]}
18. d6 {[%clk 0:01:20.6]} 18... Be4 {[%clk 0:02:29.8]} 19. Re7 {[%clk
0:01:19.3]} 19... Bc6 {[%clk 0:02:07.2]} 20. Bc4 {[%clk 0:01:01.8]} 20... Qc8
{[%clk 0:01:28.6]} 21. f5 {[%clk 0:00:59.6]} 21... Bd8 {[%clk 0:01:25.3]} 22.
Rxf7 {[%clk 0:00:23.6]} 22... Rxf7 {[%clk 0:01:11]} 23. fxg6 {[%clk 0:00:23.8]}
23... hxg6 {[%clk 0:00:44.6]} 24. Qh6 {[%clk 0:00:15.5]} 24... Be8 {[%clk
0:00:14]} 25. Qxg6+ {[%clk 0:00:15.6]} 25... Kh8 {[%clk 0:00:11.1]} 26. Bxf7
{[%clk 0:00:16.5]} 1-0

[Event "Early-Titled-Tuesday-Blitz-September-12-2023"]
[Site "Chess.com"]
[Date "2023.09.12"]
[Round "2"]
[White "ljuks68"]
[Black "LUISMIGUELOV"]
[Result "0-1"]
[WhiteElo "2446"]
[BlackElo "2105"]
[TimeControl "180+1"]
[EndTime "8:17:42 PDT"]
[Termination "LUISMIGUELOV won on time"]

1. e4 {[%clk 0:03:00.9]} 1... c6 {[%clk 0:03:00.3]} 2. d4 {[%clk 0:03:00.4]}
2... d5 {[%clk 0:03:00.9]} 3. e5 {[%clk 0:03:01]} 3... c5 {[%clk 0:03:00.5]} 4.
Nf3 {[%clk 0:03:00.8]} 4... Bg4 {[%clk 0:02:58]} 5. dxc5 {[%clk 0:02:55.9]} 5...
Nc6 {[%clk 0:02:55.7]} 6. Be3 {[%clk 0:02:46]} 6... e6 {[%clk 0:02:50.1]} 7. h3
{[%clk 0:02:43.1]} 7... Bxf3 {[%clk 0:02:49]} 8. Qxf3 {[%clk 0:02:43.2]} 8...
Nxe5 {[%clk 0:02:43.9]} 9. Qg3 {[%clk 0:02:42.9]} 9... Nc6 {[%clk 0:02:38.9]}
10. Nc3 {[%clk 0:02:39.8]} 10... Nf6 {[%clk 0:02:25.4]} 11. O-O-O {[%clk
0:02:19]} 11... a6 {[%clk 0:02:24.5]} 12. Be2 {[%clk 0:01:57]} 12... Rc8 {[%clk
0:02:22.4]} 13. Rhe1 {[%clk 0:01:55]} 13... Qc7 {[%clk 0:02:06.9]} 14. f4 {[%clk
0:01:33]} 14... d4 {[%clk 0:01:52.7]} 15. Bxd4 {[%clk 0:01:28.3]} 15... Nxd4
{[%clk 0:01:52.7]} 16. Rxd4 {[%clk 0:01:26.6]} 16... Bxc5 {[%clk 0:01:52.2]} 17.
Rd3 {[%clk 0:01:18.1]} 17... O-O {[%clk 0:01:50.7]} 18. Kb1 {[%clk 0:01:14.1]}
18... Bb4 {[%clk 0:01:49.2]} 19. Rc1 {[%clk 0:01:07.9]} 19... Bxc3 {[%clk
0:01:30.6]} 20. Rxc3 {[%clk 0:01:07.7]} 20... Ne4 {[%clk 0:01:30.7]} 21. Rxc7
{[%clk 0:01:04.6]} 21... Nxg3 {[%clk 0:01:30.6]} 22. Rxc8 {[%clk 0:01:04.4]}
22... Rxc8 {[%clk 0:01:29.8]} 23. Bf3 {[%clk 0:01:04.1]} 23... Rc7 {[%clk
0:01:24.3]} 24. c4 {[%clk 0:01:02.1]} 24... b6 {[%clk 0:01:22]} 25. b4 {[%clk
0:00:57.2]} 25... a5 {[%clk 0:01:19.9]} 26. bxa5 {[%clk 0:00:40.7]} 26... bxa5
{[%clk 0:01:19.7]} 27. Kb2 {[%clk 0:00:40.7]} 27... Kf8 {[%clk 0:01:19.7]} 28.
Kc3 {[%clk 0:00:40.4]} 28... Ke7 {[%clk 0:01:18]} 29. Rb1 {[%clk 0:00:39.6]}
29... Nf5 {[%clk 0:01:16.1]} 30. Rb5 {[%clk 0:00:35.3]} 30... Nd6 {[%clk
0:01:15.7]} 31. Rxa5 {[%clk 0:00:21.5]} 31... Rxc4+ {[%clk 0:01:16]} 32. Kb3
{[%clk 0:00:20.9]} 32... Rxf4 {[%clk 0:01:15.9]} 33. Ra7+ {[%clk 0:00:19.7]}
33... Kf6 {[%clk 0:01:14.8]} 34. a4 {[%clk 0:00:18.3]} 34... Ne4 {[%clk
0:01:12.8]} 35. a5 {[%clk 0:00:09.3]} 35... Nd2+ {[%clk 0:01:12.6]} 36. Ka3
{[%clk 0:00:08]} 36... Nxf3 {[%clk 0:01:13.1]} 37. gxf3 {[%clk 0:00:08.5]} 37...
Rxf3+ {[%clk 0:01:13.1]} 38. Kb4 {[%clk 0:00:09.3]} 38... Rxh3 {[%clk
0:01:12.1]} 39. a6 {[%clk 0:00:09.8]} 39... Rh1 {[%clk 0:01:11.4]} 40. Rb7
{[%clk 0:00:09.2]} 40... Ra1 {[%clk 0:01:10.5]} 41. a7 {[%clk 0:00:09.4]} 41...
h5 {[%clk 0:01:08.4]} 42. Kb5 {[%clk 0:00:09.6]} 42... h4 {[%clk 0:01:06.9]} 43.
Kb6 {[%clk 0:00:09.9]} 43... g5 {[%clk 0:01:04.5]} 44. Rc7 {[%clk 0:00:06.6]}
44... h3 {[%clk 0:01:01.9]} 45. Rc5 {[%clk 0:00:01.7]} 45... Rxa7 {[%clk
0:00:58.7]} 0-1

[Event "Early-Titled-Tuesday-Blitz-September-12-2023"]
[Site "Chess.com"]
[Date "2023.09.12"]
[Round "2"]
[White "MdImranCM"]
[Black "cukin84"]
[Result "1-0"]
[WhiteElo "2489"]
[BlackElo "2221"]
[TimeControl "180+1"]
[EndTime "8:17:47 PDT"]
[Termination "MdImranCM won by resignation"]

1. Nf3 {[%clk 0:02:57.3]} 1... f5 {[%clk 0:02:59]} 2. c4 {[%clk 0:02:55.8]} 2...
Nf6 {[%clk 0:02:58.4]} 3. Nc3 {[%clk 0:02:56.5]} 3... g6 {[%clk 0:02:58.3]} 4.
d4 {[%clk 0:02:54.2]} 4... Bg7 {[%clk 0:02:58.1]} 5. Bg5 {[%clk 0:02:53]} 5...
O-O {[%clk 0:02:57.2]} 6. e3 {[%clk 0:02:51.5]} 6... d6 {[%clk 0:02:56.6]} 7. h4
{[%clk 0:02:50.7]} 7... Nh5 {[%clk 0:02:53.8]} 8. Be2 {[%clk 0:02:49.1]} 8... c6
{[%clk 0:02:53]} 9. Qc2 {[%clk 0:02:46.8]} 9... Qe8 {[%clk 0:02:52.1]} 10. O-O-O
{[%clk 0:02:46.4]} 10... e5 {[%clk 0:02:51.1]} 11. dxe5 {[%clk 0:02:46.2]} 11...
dxe5 {[%clk 0:02:50.3]} 12. Nd2 {[%clk 0:02:37.2]} 12... Be6 {[%clk 0:02:42.9]}
13. c5 {[%clk 0:02:33.3]} 13... Nd7 {[%clk 0:02:40.4]} 14. Nc4 {[%clk
0:02:31.8]} 14... Nxc5 {[%clk 0:02:37.4]} 15. Nd6 {[%clk 0:02:31.9]} 15... Qb8
{[%clk 0:02:28.4]} 16. Bxh5 {[%clk 0:02:09.8]} 16... gxh5 {[%clk 0:02:27.6]} 17.
Be7 {[%clk 0:02:04.1]} 17... b6 {[%clk 0:02:17.6]} 18. Kb1 {[%clk 0:01:58.5]}
18... e4 {[%clk 0:02:16.1]} 19. Bxf8 {[%clk 0:01:57.9]} 19... Qxf8 {[%clk
0:02:15.5]} 20. Ne2 {[%clk 0:01:51.9]} 20... Nd3 {[%clk 0:02:14.8]} 21. Nf4
{[%clk 0:01:49.8]} 21... Qxd6 {[%clk 0:02:12.5]} 22. Nxd3 {[%clk 0:01:46.5]}
22... exd3 {[%clk 0:02:12]} 23. Rxd3 {[%clk 0:01:47.4]} 23... Qe5 {[%clk
0:02:09.7]} 24. Rhd1 {[%clk 0:01:41.9]} 24... h6 {[%clk 0:02:01.7]} 25. Rd8+
{[%clk 0:01:36.2]} 25... Rxd8 {[%clk 0:02:01.2]} 26. Rxd8+ {[%clk 0:01:36.7]}
26... Kh7 {[%clk 0:02:01.5]} 27. Rd4 {[%clk 0:01:32.3]} 27... Bd5 {[%clk
0:01:59.9]} 28. f3 {[%clk 0:01:29.9]} 28... c5 {[%clk 0:01:57.8]} 29. Rf4 {[%clk
0:01:02.9]} 29... Be6 {[%clk 0:01:53.1]} 30. Qd2 {[%clk 0:00:52.7]} 30... c4
{[%clk 0:01:44.3]} 31. Rd4 {[%clk 0:00:51.6]} 31... Bf7 {[%clk 0:01:41.6]} 32.
Rd7 {[%clk 0:00:50.7]} 32... Bg6 {[%clk 0:01:41.5]} 33. f4 {[%clk 0:00:49.4]}
33... Qe4+ {[%clk 0:01:36.6]} 34. Ka1 {[%clk 0:00:49.6]} 34... c3 {[%clk
0:01:34.7]} 35. Qxc3 {[%clk 0:00:49.7]} 35... Bf7 {[%clk 0:01:15.6]} 36. Rxf7
{[%clk 0:00:49.3]} 36... Qxg2 {[%clk 0:01:15.7]} 37. Rxg7+ {[%clk 0:00:29.9]}
37... Qxg7 {[%clk 0:01:12.8]} 38. Qxg7+ {[%clk 0:00:30.8]} 38... Kxg7 {[%clk
0:01:13]} 39. Kb1 {[%clk 0:00:31.7]} 39... Kf6 {[%clk 0:01:12]} 40. Kc2 {[%clk
0:00:32.6]} 40... Ke6 {[%clk 0:01:12.5]} 41. Kd3 {[%clk 0:00:33.3]} 41... Kd5
{[%clk 0:01:12.9]} 42. Kd2 {[%clk 0:00:33.2]} 42... Ke4 {[%clk 0:01:12.5]} 43.
Ke2 {[%clk 0:00:33.6]} 43... b5 {[%clk 0:01:12.8]} 44. b4 {[%clk 0:00:33.2]}
44... Kd5 {[%clk 0:01:02.8]} 45. Kd3 {[%clk 0:00:33.2]} 45... Ke6 {[%clk
0:01:00.9]} 46. e4 {[%clk 0:00:32.7]} 46... fxe4+ {[%clk 0:00:57.5]} 47. Kxe4
{[%clk 0:00:33.6]} 47... Kf6 {[%clk 0:00:57.2]} 48. f5 {[%clk 0:00:32.6]} 48...
a6 {[%clk 0:00:54.5]} 49. Kf4 {[%clk 0:00:33.1]} 49... Kf7 {[%clk 0:00:54]} 50.
Ke5 {[%clk 0:00:33.6]} 50... Ke7 {[%clk 0:00:54.5]} 51. f6+ {[%clk 0:00:34.1]}
51... Kf7 {[%clk 0:00:55]} 52. Kf5 {[%clk 0:00:35]} 52... Kf8 {[%clk 0:00:55.1]}
53. Kg6 {[%clk 0:00:35.7]} 53... Kg8 {[%clk 0:00:55]} 54. Kxh6 {[%clk
0:00:36.4]} 54... Kf7 {[%clk 0:00:55.3]} 55. Kg5 {[%clk 0:00:37.3]} 55... Kf8
{[%clk 0:00:55.3]} 56. Kxh5 {[%clk 0:00:37.9]} 56... Kf7 {[%clk 0:00:55.8]} 57.
Kg5 {[%clk 0:00:38.6]} 1-0

[Event "Early-Titled-Tuesday-Blitz-September-12-2023"]
[Site "Chess.com"]
[Date "2023.09.12"]
[Round "2"]
[White "sqmorr"]
[Black "savitha1030"]
[Result "0-1"]
[WhiteElo "2160"]
[BlackElo "2480"]
[TimeControl "180+1"]
[EndTime "8:17:47 PDT"]
[Termination "savitha1030 won by resignation"]

1. d4 {[%clk 0:03:00.9]} 1... c5 {[%clk 0:02:56.4]} 2. d5 {[%clk 0:03:00]} 2...
d6 {[%clk 0:02:56.9]} 3. e4 {[%clk 0:02:56]} 3... e6 {[%clk 0:02:57.4]} 4. Bb5+
{[%clk 0:02:52.7]} 4... Bd7 {[%clk 0:02:55.5]} 5. Bxd7+ {[%clk 0:02:51.2]} 5...
Qxd7 {[%clk 0:02:56.4]} 6. Nf3 {[%clk 0:02:49.6]} 6... Nf6 {[%clk 0:02:56.5]} 7.
Nc3 {[%clk 0:02:48.5]} 7... exd5 {[%clk 0:02:56.2]} 8. exd5 {[%clk 0:02:47.7]}
8... Be7 {[%clk 0:02:56.6]} 9. O-O {[%clk 0:02:46.8]} 9... b5 {[%clk 0:02:54.9]}
10. Re1 {[%clk 0:02:40.5]} 10... b4 {[%clk 0:02:52.6]} 11. Ne4 {[%clk
0:02:39.2]} 11... O-O {[%clk 0:02:51.9]} 12. Bf4 {[%clk 0:02:18.4]} 12... Nxe4
{[%clk 0:02:48.3]} 13. Rxe4 {[%clk 0:02:16.3]} 13... Bf6 {[%clk 0:02:48.9]} 14.
Rb1 {[%clk 0:02:13.4]} 14... Qf5 {[%clk 0:02:41.6]} 15. Qd3 {[%clk 0:02:09.4]}
15... Qd7 {[%clk 0:01:51.2]} 16. c4 {[%clk 0:02:03.9]} 16... bxc3 {[%clk
0:01:45.8]} 17. bxc3 {[%clk 0:02:02]} 17... h6 {[%clk 0:01:42.1]} 18. Rbe1
{[%clk 0:01:54.3]} 18... Rc8 {[%clk 0:01:42.1]} 19. c4 {[%clk 0:01:46]} 19...
Na6 {[%clk 0:01:40.9]} 20. a3 {[%clk 0:01:28.2]} 20... Rab8 {[%clk 0:01:38.7]}
21. h3 {[%clk 0:01:19.7]} 21... Rb2 {[%clk 0:01:32.7]} 22. R4e2 {[%clk
0:01:14.7]} 22... Rb6 {[%clk 0:01:27.4]} 23. Kh2 {[%clk 0:01:09]} 23... Rcb8
{[%clk 0:01:27.6]} 24. Re3 {[%clk 0:01:04.8]} 24... Rb3 {[%clk 0:01:23.7]} 25.
Qe4 {[%clk 0:01:01.7]} 25... Nc7 {[%clk 0:01:19.2]} 26. Bg3 {[%clk 0:00:59]}
26... a5 {[%clk 0:01:09.7]} 27. Qg4 {[%clk 0:00:55.9]} 27... Qxg4 {[%clk
0:01:08.1]} 28. hxg4 {[%clk 0:00:55.3]} 28... a4 {[%clk 0:01:09]} 29. Bf4 {[%clk
0:00:53.8]} 29... R8b6 {[%clk 0:01:06.8]} 30. Kh3 {[%clk 0:00:49.7]} 30... Bd4
{[%clk 0:01:01.9]} 31. Re7 {[%clk 0:00:36.7]} 31... Na6 {[%clk 0:00:58.6]} 32.
Ra7 {[%clk 0:00:31]} 32... Rxa3 {[%clk 0:00:55.9]} 33. Re8+ {[%clk 0:00:28]}
33... Kh7 {[%clk 0:00:55.5]} 34. Rxf7 {[%clk 0:00:26.7]} 34... Rxf3+ {[%clk
0:00:42.2]} 35. gxf3 {[%clk 0:00:25.2]} 35... a3 {[%clk 0:00:43.1]} 36. Re2
{[%clk 0:00:16.9]} 36... Rb2 {[%clk 0:00:42.3]} 37. Rfe7 {[%clk 0:00:13.2]}
37... a2 {[%clk 0:00:40.6]} 38. Re1 {[%clk 0:00:11]} 38... Rb1 {[%clk
0:00:39.1]} 0-1